[Event "BAN-chT Golden Jubilee 2021-22"]
[Site "Dhaka"]
[Date "2022.03.14"]
[Round "5.24"]
[White "Mihir Lal, Das"]
[Black "Masum, Hossain"]
[Result "1/2-1/2"]
[ECO "A37"]
[WhiteElo "2006"]
[BlackElo "2003"]
[Annotator "ChessBase"]
[PlyCount "85"]
[EventDate "2022.03.10"]
[EventType "team-tourn"]
[EventCountry "BAN"]
[SourceTitle "playchess.com"]
[Source "ChessBase"]
[SourceQuality "1"]
[TimeControl "40/5400+30:1800+30"]

1. Nf3 {[%emt 0:00:03]} c5 {[%emt 0:00:08]} 2. c4 {[%emt 0:00:04]} g6 {[%emt 0:00:06]} 3. g3 {[%emt 0:00:14]} Bg7 {[%emt 0:00:02]} 4. Bg2 {[%emt 0:00:03]} Nc6 {[%emt 0:00:10]} 5. O-O {[%emt 0:00:04]} e6 {[%emt 0:00:53]} 6. Nc3 {[%emt 0:00:22]} Nge7 {[%emt 0:00:23]} 7. e3 {[%emt 0:06:58]} O-O {[%emt 0:00:25]} 8. d4 {[%emt 0:00:23]} cxd4 {[%emt 0:01:20]} 9. exd4 {[%emt 0:01:06]} d5 {[%emt 0:00:03]} 10. cxd5 {[%emt 0:04:00]} Nxd5 {[%emt 0:00:19]} 11. Re1 {[%emt 0:13:17]} Nb6 {[%emt 0:08:51]} 12. Bg5 {[%emt 0:01:19]} Qd6 {[%emt 0:05:14]} 13. Ne4 {[%emt 0:09:20]} Qb4 {[%emt 0:04:49]} 14. b3 {[%emt 0:07:03]} Nd5 {[%emt 0:03:25]} 15. Rc1 {[%emt 0:09:36]} h6 {[%emt 0:25:49]} 16. Rc4 {[%emt 0:44:38]} Qb6 {[%emt 0:01:03]} 17. Bc1 {[%emt 0:00:00]} Rd8 {[%emt 0:00:33]} 18. Qe2 {[%emt 0:01:00]} Nde7 {[%emt 0:06:49]} 19. Bb2 {[%emt 0:00:00]} Nf5 {[%emt 0:00:30]} 20. Rd1 {[%emt 0:00:00]} Nfxd4 {[%emt 0:06:15]} 21. Nxd4 {[%emt 0:00:00]} Nxd4 {[%emt 0:00:07]} 22. Bxd4 {[%emt 0:00:00]} Rxd4 {[%emt 0:00:19]} 23. Rcxd4 {[%emt 0:00:00]} Bxd4 {[%emt 0:01:48]} 24. Qd2 {[%emt 0:00:00]} e5 {[%emt 0:04:57]} 25. Qxh6 {[%emt 0:00:00]} Bg4 {[%emt 0:07:23]} 26. Rf1 {[%emt 0:00:00]} Rd8 {[%emt 0:04:32]} 27. Qh4 {[%emt 0:02:39]} Bf5 {[%emt 0:04:37]} 28. Nf6+ {[%emt 0:00:28]} Kg7 {[%emt 0:00:29]} 29. Nd5 {[%emt 0:00:41]} Qd6 {[%emt 0:03:49]} 30. Ne3 {[%emt 0:00:08]} Bd3 {[%emt 0:08:42]} 31. Re1 {[%emt 0:00:19]} Rh8 {[%emt 0:00:09]} 32. Qg4 {[%emt 0:00:44]} f5 {[%emt 0:00:15]} 33. Qd1 {[%emt 0:01:23]} e4 {[%emt 0:00:26]} 34. Nc4 {[%emt 0:00:43]} Qc5 {[%emt 0:00:14]} 35. Qd2 {[%emt 0:00:15]} Bxc4 {[%emt 0:01:53]} 36. bxc4 {[%emt 0:00:01]} Rd8 {[%emt 0:00:02]} 37. Qc2 {[%emt 0:00:26]} b5 {[%emt 0:00:10]} 38. Rc1 {[%emt 0:00:36]} bxc4 {[%emt 0:00:03]} 39. Bf1 {[%emt 0:01:17]} c3 {[%emt 0:00:36]} 40. Kg2 {[%emt 0:00:00]} Bf6 {[%emt 0:00:00]} 41. Be2 {[%emt 0:01:26]} e3 {[%emt 0:00:55]} 42. fxe3 {[%emt 0:02:18]} Qxe3 {[%emt 0:00:15]} 43. Rd1 {[%emt 0:01:00]} 1/2-1/2

[Event "BAN-chT Golden Jubilee 2021-22"]
[Site "Dhaka"]
[Date "2022.03.15"]
[Round "6.5"]
[White "abzid, Rahman"]
[Black "Chowdhury, Sohel"]
[Result "1/2-1/2"]
[ECO "D05"]
[WhiteElo "2106"]
[BlackElo "2046"]
[Annotator "NA"]
[PlyCount "68"]
[EventDate "2022.03.10"]
[EventType "team-tourn"]
[EventCountry "BAN"]
[SourceTitle "playchess.com"]
[Source "ChessBase"]
[SourceQuality "1"]
[TimeControl "40/5400+30:1800+30"]

1. d4 {[%emt 0:00:52]} d5 {[%emt 0:00:08]} 2. Nf3 {[%emt 0:00:18]} Nf6 {[%emt 0:00:13]} 3. e3 {[%emt 0:00:09]} e6 {[%emt 0:01:26]} 4. Bd3 {[%emt 0:00:07]} c5 {[%emt 0:01:50]} 5. b3 {[%emt 0:00:09]} Nc6 {[%emt 0:01:29]} 6. Bb2 {[%emt 0:00:24]} Be7 {[%emt 0:02:13]} 7. O-O {[%emt 0:00:17]} O-O {[%emt 0:00:07]} 8. a3 {[%emt 1:32:14]} b6 {[%emt 0:01:27]} 9. Nbd2 {[%emt 0:00:00]} Bb7 {[%emt 0:00:14]} 10. Qe2 {[%emt 0:00:00]} cxd4 {[%emt 0:07:15]} 11. exd4 {[%emt 0:00:00]} Rc8 {[%emt 0:06:56]} 12. Ne5 {[%emt 0:00:00]} Qc7 {[%emt 0:14:15]} 13. Rac1 {[%emt 0:00:00]} Bd6 {[%emt 0:07:20]} 14. f4 {[%emt 0:00:00]} Qe7 {[%emt 0:01:06]} 15. b4 {[%emt 0:00:00]} g6 {[%emt 0:08:13]} 16. Rf3 {[%emt 0:00:00]} Nh5 {[%emt 0:04:59]} 17. g4 {[%emt 0:00:00]} Ng7 {[%emt 0:01:34]} 18. Re1 {[%emt 0:00:00]} Rfe8 {[%emt 0:13:29]} ({Better is} 18... f6 $11) 19. Qf2 {[%emt 0:00:00]} f5 {[%emt 0:07:54]} 20. Nxc6 {[%emt 0:00:00]} Bxc6 {[%emt 0:00:47]} 21. g5 {[%emt 0:00:00]} Nh5 {[%emt 0:02:01]} 22. h4 {[%emt 0:00:00] [#]} Qc7 {[%emt 0:00:52]} (22... h6 $1 $17 23. gxh6 Qh7) 23. Rf1 $1 $11 {[%emt 0:00:00]} Qd7 {[%emt 0:02:27]} 24. Qe2 {[%emt 0:00:00]} Qc7 {[%emt 0:01:28]} 25. Qe3 $17 {[%emt 0:00:00]} Qd7 {[%emt 0:00:36]} 26. Ba6 {[%emt 0:00:00]} Bb7 {[%emt 0:01:12]} 27. Bd3 {[%emt 0:00:00]} Bc6 {[%emt 0:00:03]} 28. Ba6 {[%emt 0:00:34]} Bb7 {[%emt 0:00:02]} 29. Bd3 {[%emt 0:00:12]} Bc6 {[%emt 0:00:05]} 30. Qe2 {[%emt 0:00:26]} Qc7 {[%emt 0:00:28]} 31. Ba6 {[%emt 0:06:34]} Bb7 {[%emt 0:00:07]} 32. Bb5 {[%emt 0:03:03]} Bc6 {[%emt 0:00:18]} 33. Ba6 {[%emt 0:01:02]} Bb7 {[%emt 0:00:06]} 34. Bb5 {[%emt 0:00:10]} Bc6 {[%emt 0:00:07]} 1/2-1/2

[Event "BAN-chT Golden Jubilee 2021-22"]
[Site "Dhaka"]
[Date "2022.03.17"]
[Round "8.1"]
[White "Murshed, Niaz"]
[Black "abzid, Rahman"]
[Result "0-1"]
[ECO "D35"]
[WhiteElo "2418"]
[BlackElo "2106"]
[Annotator "ChessBase"]
[PlyCount "60"]
[EventDate "2022.03.10"]
[EventType "team-tourn"]
[EventCountry "BAN"]
[SourceTitle "playchess.com"]
[Source "ChessBase"]
[SourceQuality "1"]
[TimeControl "40/5400+30:1800+30"]

1. d4 {[%emt 1:31:00]} d5 {[%emt 0:00:18]} 2. c4 {[%emt 0:00:00]} e6 {[%emt 0:00:15]} 3. Nc3 {[%emt 0:00:00]} Nf6 {[%emt 0:00:26]} 4. cxd5 {[%emt 0:00:00]} exd5 {[%emt 0:00:15]} 5. Bg5 {[%emt 0:00:00]} Be7 {[%emt 0:00:42]} 6. e3 {[%emt 0:00:00]} O-O {[%emt 0:00:25]} 7. Bd3 {[%emt 0:00:00]} c6 {[%emt 0:03:04]} 8. Nge2 {[%emt 0:00:00]} a5 {[%emt 0:00:44]} 9. O-O {[%emt 0:00:00]} Na6 {[%emt 0:01:39]} 10. Rc1 {[%emt 0:00:00]} Nc7 {[%emt 0:02:02]} 11. f3 {[%emt 0:00:00]} Ne6 {[%emt 0:04:05]} 12. Bh4 {[%emt 0:00:00]} g6 {[%emt 0:11:31]} 13. Bf2 {[%emt 0:00:00]} Nh5 {[%emt 0:06:35]} 14. g4 {[%emt 0:00:00]} Nhg7 {[%emt 0:00:25]} 15. Ng3 {[%emt 0:00:00]} Ng5 {[%emt 0:04:34]} 16. Kg2 {[%emt 0:00:00]} h5 {[%emt 0:00:17]} 17. h3 {[%emt 0:00:00]} Bd6 {[%emt 0:13:19]} 18. Be2 {[%emt 0:00:00]} f5 {[%emt 0:19:07]} 19. f4 {[%emt 0:00:00]} fxg4 {[%emt 0:02:02]} 20. hxg4 {[%emt 0:00:00]} h4 {[%emt 0:01:03]} 21. fxg5 {[%emt 0:00:00]} hxg3 {[%emt 0:01:50]} 22. Bxg3 {[%emt 0:00:00]} Rxf1 {[%emt 0:03:55]} 23. Qxf1 {[%emt 0:00:00]} Bxg3 {[%emt 0:00:08]} 24. Kxg3 {[%emt 0:00:00]} Qxg5 {[%emt 0:00:08]} 25. Qf3 {[%emt 0:00:00]} Bxg4 {[%emt 0:00:55]} 26. Qxg4 {[%emt 0:12:30]} Qxe3+ {[%emt 0:23:46]} 27. Bf3 {[%emt 0:00:00]} Qxc1 {[%emt 0:00:00]} 28. Ne2 {[%emt 0:00:00]} Qe3 {[%emt 0:00:00]} 29. Qxg6 {[%emt 0:00:00]} Rf8 {[%emt 0:00:00]} 30. Qg4 {[%emt 0:00:00]} Rf5 {[%emt 0:00:00]} 0-1

[Event "BAN-chT Golden Jubilee 2021-22"]
[Site "Dhaka"]
[Date "2022.03.17"]
[Round "8.5"]
[White "Islam, Khandaker Aminul"]
[Black "Rahman, Syed Mahfuzur"]
[Result "1-0"]
[ECO "D02"]
[WhiteElo "2153"]
[BlackElo "2099"]
[Annotator "NA"]
[PlyCount "72"]
[EventDate "2022.03.10"]
[EventType "team-tourn"]
[EventCountry "BAN"]
[SourceTitle "playchess.com"]
[Source "ChessBase"]
[SourceQuality "1"]
[TimeControl "40/5400+30:1800+30"]

1. d4 {[%emt 0:00:05]} d5 {[%emt 0:03:06]} 2. Nf3 {[%emt 0:00:03]} Nf6 {[%emt 0:01:33]} 3. Bf4 {[%emt 0:00:08]} c5 {[%emt 0:14:03]} 4. e3 {[%emt 0:00:08]} Nc6 {[%emt 0:00:04]} 5. Nbd2 {[%emt 0:00:09]} Bf5 {[%emt 0:00:54]} 6. dxc5 {[%emt 0:00:12]} Qa5 {[%emt 0:29:28]} 7. Nd4 {[%emt 0:01:03]} Nxd4 {[%emt 0:09:17]} 8. exd4 {[%emt 0:00:08]} Qb4 {[%emt 0:00:04]} 9. Be3 {[%emt 0:12:27]} e5 {[%emt 0:01:54]} 10. a3 {[%emt 0:30:48]} Qxb2 {[%emt 0:03:13]} 11. Rb1 {[%emt 0:02:58]} Qxc2 {[%emt 0:11:58]} 12. Qxc2 {[%emt 0:02:03]} Bxc2 {[%emt 0:00:02]} 13. Rxb7 {[%emt 0:00:18]} Ba4 {[%emt 0:00:28]} 14. Rb4 {[%emt 0:04:59]} Bc6 {[%emt 0:10:25]} 15. Ba6 {[%emt 0:06:37]} exd4 {[%emt 0:04:42]} 16. Bxd4 {[%emt 0:00:04]} Be7 {[%emt 0:03:48]} 17. Nb3 {[%emt 0:00:55]} O-O {[%emt 0:01:02]} 18. O-O {[%emt 0:05:13]} Rfd8 {[%emt 0:02:30]} 19. Na5 {[%emt 0:02:48]} Bd7 {[%emt 0:00:53]} 20. Bb7 {[%emt 0:02:03]} Rab8 {[%emt 0:00:04]} 21. c6 {[%emt 0:01:57]} Bxb4 {[%emt 0:00:52]} 22. axb4 {[%emt 0:00:14]} Bxc6 {[%emt 0:00:38]} 23. Nxc6 {[%emt 0:01:12]} Rxb7 {[%emt 0:00:06]} 24. Nxd8 {[%emt 0:00:17]} Rxb4 {[%emt 0:00:44]} 25. Nc6 {[%emt 0:01:11]} Rc4 {[%emt 0:00:21]} 26. Ne7+ {[%emt 0:00:47]} Kf8 {[%emt 0:00:34]} 27. Bxf6 {[%emt 0:00:14]} gxf6 {[%emt 0:00:08]} 28. Nxd5 {[%emt 0:00:02]} Rd4 {[%emt 0:00:38]} 29. Ne3 $18 {[%emt 0:00:13]} ({But not} 29. Nxf6 Kg7 30. Nh5+ Kg6 $18) 29... a5 {[%emt 0:00:52]} 30. Rb1 {[%emt 0:01:22]} Ke8 {[%emt 0:00:08]} 31. Kf1 {[%emt 0:00:33]} Kd7 {[%emt 0:00:08]} 32. Rb6 {[%emt 0:00:03]} f5 {[%emt 0:01:22]} 33. Nxf5 {[%emt 0:01:09]} Rf4 {[%emt 0:00:30]} 34. Ne3 {[%emt 0:00:21]} a4 {[%emt 0:00:18]} 35. Ra6 {[%emt 0:00:10]} Kc8 {[%emt 0:00:05]} 36. Nd5 {[%emt 0:01:06]} Rd4 {[%emt 0:01:38]} 1-0

[Event "BAN-chT Golden Jubilee 2021-22"]
[Site "Dhaka"]
[Date "2022.03.17"]
[Round "8.8"]
[White "Mihir Lal, Das"]
[Black "Subrota, Biswas"]
[Result "0-1"]
[ECO "D11"]
[WhiteElo "2006"]
[BlackElo "2202"]
[Annotator "ChessBase"]
[PlyCount "102"]
[EventDate "2022.03.10"]
[EventType "team-tourn"]
[EventCountry "BAN"]
[SourceTitle "playchess.com"]
[Source "ChessBase"]
[SourceQuality "1"]
[TimeControl "40/5400+30:1800+30"]

1. Nf3 {[%emt 0:04:44]} Nf6 {[%emt 0:00:31]} 2. g3 {[%emt 0:00:06]} d5 {[%emt 0:00:44]} 3. Bg2 {[%emt 0:00:16]} c6 {[%emt 0:00:52]} 4. O-O {[%emt 0:00:56]} Bf5 {[%emt 0:00:57]} 5. d4 {[%emt 0:01:37]} h6 {[%emt 0:01:24]} 6. c4 {[%emt 0:03:12]} e6 {[%emt 0:00:10]} 7. Nc3 {[%emt 0:01:48]} Nbd7 {[%emt 0:01:43]} 8. Nd2 {[%emt 0:07:51]} Be7 {[%emt 0:01:16]} 9. e4 {[%emt 0:01:08]} dxe4 {[%emt 0:00:02]} 10. Ndxe4 {[%emt 0:00:11]} O-O {[%emt 0:00:11]} 11. Nxf6+ {[%emt 0:08:26]} Nxf6 {[%emt 0:00:15]} 12. d5 {[%emt 0:03:26]} Qc7 {[%emt 0:07:11]} 13. dxe6 {[%emt 0:02:12]} Bxe6 {[%emt 0:00:06]} 14. Qa4 {[%emt 0:09:26]} Nd7 {[%emt 0:00:52]} 15. Bf4 {[%emt 0:01:58]} Qb6 {[%emt 0:01:21]} 16. Ne4 {[%emt 0:07:00]} Nc5 {[%emt 0:12:53]} 17. Qa3 {[%emt 0:05:02]} Nxe4 {[%emt 0:03:28]} 18. Qxe7 {[%emt 0:00:15]} Rfe8 {[%emt 0:00:18]} 19. Qa3 {[%emt 0:02:35]} Bxc4 {[%emt 0:00:39]} 20. Bxe4 {[%emt 0:03:11]} Bxf1 {[%emt 0:01:41]} 21. Qf3 {[%emt 0:05:57]} Bc4 {[%emt 0:01:33]} 22. b3 {[%emt 0:05:48]} Qd4 {[%emt 0:01:01]} 23. Rb1 {[%emt 0:04:13]} Qxe4 {[%emt 0:00:29]} 24. Qxe4 {[%emt 0:00:05]} Rxe4 {[%emt 0:00:04]} 25. bxc4 {[%emt 0:00:10]} b6 {[%emt 0:02:40]} 26. Rc1 {[%emt 0:03:36]} c5 {[%emt 0:00:28]} 27. Kg2 {[%emt 0:00:14]} Rd8 {[%emt 0:00:23]} 28. Rc3 {[%emt 0:00:45]} Rdd4 {[%emt 0:00:29]} 29. Ra3 {[%emt 0:00:12]} Rxc4 {[%emt 0:00:08]} 30. Rxa7 {[%emt 0:00:11]} Ra4 {[%emt 0:00:10]} 31. Rb7 {[%emt 0:00:21]} Reb4 {[%emt 0:00:02]} 32. h4 {[%emt 0:02:53]} Rxa2 {[%emt 0:02:02]} 33. h5 {[%emt 0:00:27]} Ra8 {[%emt 0:00:02]} 34. Bc7 {[%emt 0:01:15]} c4 {[%emt 0:00:30]} 35. Be5 {[%emt 0:01:15]} Rc8 {[%emt 0:00:08]} 36. Bc3 {[%emt 0:02:25]} Rb3 {[%emt 0:00:03]} 37. Bd2 {[%emt 0:00:42]} c3 {[%emt 0:00:03]} 38. Bc1 {[%emt 0:00:21]} Rb1 {[%emt 0:00:23]} 39. Be3 {[%emt 0:00:55]} c2 {[%emt 0:00:04]} 40. g4 {[%emt 0:00:00]} c1=Q {[%emt 0:00:00]} 41. Bxc1 {[%emt 0:09:23]} Rcxc1 {[%emt 0:00:55]} 42. Rb8+ {[%emt 0:00:46]} Kh7 {[%emt 0:00:02]} 43. Rf8 {[%emt 0:00:39]} Rg1+ {[%emt 0:00:11]} 44. Kh3 {[%emt 0:01:32]} Rb3+ {[%emt 0:00:20]} 45. f3 {[%emt 0:00:52]} Rxf3+ {[%emt 1:34:16]} 46. Kh2 {[%emt 0:00:22]} Rxg4 {[%emt 0:00:00]} 47. Re8 {[%emt 0:00:24]} Rf5 {[%emt 0:00:00]} 48. Kh3 {[%emt 0:00:11]} Rfg5 {[%emt 0:00:00]} 49. Rd8 {[%emt 0:00:58]} f5 {[%emt 0:00:00]} 50. Rh8+ {[%emt 0:01:54]} Kxh8 {[%emt 0:00:00]} 51. Kh2 {[%emt 0:00:24]} Rxh5# {[%emt 0:00:00]} 0-1

[Event "BAN-chT Golden Jubilee 2021-22"]
[Site "Dhaka"]
[Date "2022.03.17"]
[Round "8.9"]
[White "Sadnan Hasan, Dihan"]
[Black "Chowdhury, Sohel"]
[Result "1-0"]
[ECO "A06"]
[WhiteElo "2152"]
[BlackElo "2046"]
[Annotator "ChessBase"]
[PlyCount "97"]
[EventDate "2022.03.10"]
[EventType "team-tourn"]
[EventCountry "BAN"]
[SourceTitle "playchess.com"]
[Source "ChessBase"]
[SourceQuality "1"]
[TimeControl "40/5400+30:1800+30"]

1. Nf3 {[%emt 0:00:08]} d5 {[%emt 0:01:14]} 2. b3 {[%emt 0:00:09]} Nf6 {[%emt 0:02:32]} 3. Bb2 {[%emt 0:00:02]} Bg4 {[%emt 0:01:15]} 4. h3 {[%emt 0:00:35]} Bf5 {[%emt 0:02:00]} 5. d3 {[%emt 0:00:14]} e6 {[%emt 0:00:31]} 6. Nh4 {[%emt 0:01:34]} Bg6 {[%emt 0:00:52]} 7. Nxg6 {[%emt 0:00:03]} hxg6 {[%emt 0:00:03]} 8. Nd2 {[%emt 0:01:33]} c6 {[%emt 0:04:13]} 9. e3 {[%emt 0:01:00]} Nbd7 {[%emt 0:00:38]} 10. Be2 {[%emt 0:00:44]} Qa5 {[%emt 0:02:13]} 11. a3 {[%emt 0:01:21]} Be7 {[%emt 0:11:41]} 12. O-O {[%emt 0:03:51]} Qb6 {[%emt 0:04:53]} 13. Re1 {[%emt 0:01:10]} a5 {[%emt 0:01:55]} 14. Rb1 {[%emt 0:02:32]} O-O {[%emt 0:03:40]} 15. c4 {[%emt 0:02:12]} Rfe8 {[%emt 0:02:05]} 16. Qc2 {[%emt 0:01:13]} Rac8 {[%emt 0:00:55]} 17. Bf1 {[%emt 0:03:24]} Bf8 {[%emt 0:01:38]} 18. Ra1 {[%emt 0:02:56]} Qc7 {[%emt 0:12:50]} 19. Rec1 {[%emt 0:01:25]} Ne5 {[%emt 0:03:53]} 20. Qc3 {[%emt 0:02:08]} Ned7 {[%emt 0:00:36]} 21. Qc2 {[%emt 0:01:16]} Ne5 {[%emt 0:01:15]} 22. c5 {[%emt 0:00:14]} Ned7 {[%emt 0:01:18]} 23. b4 {[%emt 0:00:44]} e5 {[%emt 0:02:15]} 24. d4 {[%emt 0:01:44]} axb4 {[%emt 0:06:51]} 25. axb4 {[%emt 0:00:01]} Ra8 {[%emt 0:00:18]} 26. b5 {[%emt 0:11:56]} e4 {[%emt 0:04:17]} 27. b6 {[%emt 0:00:52]} Qd8 {[%emt 0:02:57]} 28. Rxa8 {[%emt 0:00:13]} Qxa8 {[%emt 0:00:23]} 29. Ra1 {[%emt 0:00:03]} Qc8 {[%emt 0:05:13]} 30. Nb3 {[%emt 0:01:37]} Nh7 {[%emt 0:01:45]} 31. Ra7 {[%emt 0:00:56]} Ndf6 {[%emt 0:00:18]} 32. Na5 {[%emt 0:00:46]} Re7 {[%emt 0:04:53]} 33. Nxb7 {[%emt 0:00:38]} Rxb7 {[%emt 0:00:44]} 34. Ba6 {[%emt 0:00:05]} Ng5 {[%emt 0:00:16]} 35. Rxb7 {[%emt 0:00:22]} Nxh3+ {[%emt 0:04:22]} 36. gxh3 {[%emt 0:00:14]} Qxh3 {[%emt 0:00:01]} 37. Bf1 {[%emt 0:00:09]} Qg4+ {[%emt 0:05:31]} 38. Bg2 {[%emt 0:00:01]} Nh7 {[%emt 0:00:01]} 39. Rb8 {[%emt 0:00:23]} Ng5 {[%emt 0:00:47]} 40. Rxf8+ {[%emt 0:00:00]} Kxf8 {[%emt 0:00:00]} 41. b7 {[%emt 0:00:16]} Nf3+ {[%emt 0:02:47]} 42. Kf1 {[%emt 0:00:01]} Nh2+ {[%emt 0:01:55]} 43. Ke1 {[%emt 0:00:01]} Qxg2 {[%emt 0:07:40]} 44. b8=Q+ {[%emt 0:00:07]} Ke7 {[%emt 0:00:33]} 45. Qc7+ {[%emt 0:00:02]} Ke8 {[%emt 0:01:19]} 46. Qxc6+ {[%emt 0:00:03]} Kf8 {[%emt 0:00:09]} 47. Qc8+ {[%emt 0:00:07]} Ke7 {[%emt 0:00:39]} 48. Qc7+ {[%emt 0:00:19]} Ke6 {[%emt 0:00:48]} 49. Qd6+ {[%emt 0:00:03]} 1-0

[Event "BAN-chT Golden Jubilee 2021-22"]
[Site "Dhaka"]
[Date "2022.03.17"]
[Round "8.12"]
[White "Masum, Hossain"]
[Black "Anata, Choudhury"]
[Result "0-1"]
[ECO "D38"]
[WhiteElo "2003"]
[BlackElo "2170"]
[Annotator "ChessBase"]
[PlyCount "59"]
[EventDate "2022.03.10"]
[EventType "team-tourn"]
[EventCountry "BAN"]
[SourceTitle "playchess.com"]
[Source "ChessBase"]
[SourceQuality "1"]
[TimeControl "40/5400+30:1800+30"]

1. d4 {[%emt 0:06:36]} Nf6 {[%emt 0:00:18]} 2. c4 {[%emt 0:00:05]} e6 {[%emt 0:00:11]} 3. Nf3 {[%emt 0:00:01]} d5 {[%emt 0:00:14]} 4. Nc3 {[%emt 0:00:03]} Bb4 {[%emt 0:00:11]} 5. cxd5 {[%emt 0:00:11]} exd5 {[%emt 0:00:11]} 6. Bg5 {[%emt 0:00:06]} h6 {[%emt 0:00:30]} 7. Bh4 {[%emt 0:00:48]} g5 {[%emt 0:00:14]} 8. Bg3 {[%emt 0:00:30]} Ne4 {[%emt 0:00:16]} 9. Qb3 {[%emt 0:00:16]} c5 {[%emt 0:15:09]} 10. dxc5 {[%emt 0:00:51]} Nc6 {[%emt 0:00:15]} 11. e3 {[%emt 0:01:21]} Qf6 {[%emt 0:11:37]} 12. Bb5 {[%emt 0:03:29]} Nxc5 {[%emt 0:00:53]} 13. Qxd5 {[%emt 1:17:00]} Bxc3+ {[%emt 0:13:39]} 14. bxc3 {[%emt 0:01:01]} Qxc3+ {[%emt 0:00:44]} 15. Nd2 {[%emt 0:00:15]} O-O {[%emt 0:15:32]} 16. O-O {[%emt 0:04:10]} Be6 {[%emt 0:01:13]} 17. Qf3 {[%emt 0:00:29]} Qxd2 {[%emt 0:01:18]} 18. Bxc6 {[%emt 0:00:15]} bxc6 {[%emt 0:00:28]} 19. Qf6 {[%emt 0:00:14]} Kh7 {[%emt 0:10:44]} 20. Be5 {[%emt 0:01:18]} Rg8 {[%emt 0:00:09]} 21. Rad1 {[%emt 0:01:11]} Qe2 {[%emt 0:00:51]} 22. Rfe1 {[%emt 0:00:13]} Qh5 {[%emt 0:00:24]} 23. Qe7 {[%emt 0:00:11]} Ne4 {[%emt 0:01:51]} 24. f3 {[%emt 0:00:18]} g4 {[%emt 0:00:13]} 25. f4 {[%emt 0:00:23]} g3 {[%emt 0:03:25]} 26. h3 {[%emt 0:01:17]} Qf5 {[%emt 0:00:33]} 27. Rd4 {[%emt 0:00:39]} Bd5 {[%emt 0:00:28]} 28. Rc1 {[%emt 0:00:43]} Nf2 {[%emt 0:01:01]} 29. e4 {[%emt 0:00:35]} Nxe4 {[%emt 0:00:41]} 30. Kh1 {[%emt 0:01:01]} 0-1

[Event "BAN-chT Golden Jubilee 2021-22"]
[Site "Dhaka"]
[Date "2022.03.17"]
[Round "8.13"]
[White "Manon, Reja Neer"]
[Black "Zia, Tahsin Tajwar"]
[Result "1/2-1/2"]
[ECO "B15"]
[WhiteElo "2209"]
[BlackElo "2283"]
[Annotator "ChessBase"]
[PlyCount "60"]
[EventDate "2022.03.10"]
[EventType "team-tourn"]
[EventCountry "BAN"]
[SourceTitle "playchess.com"]
[Source "ChessBase"]
[SourceQuality "1"]
[TimeControl "40/5400+30:1800+30"]

1. e4 {[%emt 0:01:21]} c6 {[%emt 0:00:41]} 2. d4 {[%emt 0:02:48]} d5 {[%emt 0:00:07]} 3. Nc3 {[%emt 0:00:11]} dxe4 {[%emt 0:00:24]} 4. Nxe4 {[%emt 0:00:02]} Nf6 {[%emt 0:00:09]} 5. Nxf6+ {[%emt 0:00:07]} exf6 {[%emt 0:00:07]} 6. c3 {[%emt 0:01:31]} Bd6 {[%emt 0:00:08]} 7. Bd3 {[%emt 0:00:28]} O-O {[%emt 0:00:08]} 8. Qc2 {[%emt 0:00:01]} Re8+ {[%emt 0:00:08]} 9. Ne2 {[%emt 0:00:04]} h5 {[%emt 0:00:06]} 10. Be3 {[%emt 0:00:03]} Nd7 {[%emt 0:00:10]} 11. O-O-O {[%emt 0:00:18]} Nf8 {[%emt 0:01:30]} 12. Kb1 {[%emt 0:05:44]} Be6 {[%emt 0:00:34]} 13. c4 {[%emt 0:01:40]} Rc8 {[%emt 0:00:36]} 14. Nc3 {[%emt 0:01:59]} Bb4 {[%emt 0:00:07]} 15. Ne4 {[%emt 0:16:56]} Be7 {[%emt 0:01:52]} 16. Rhe1 {[%emt 0:13:42]} b5 {[%emt 0:19:09]} 17. c5 {[%emt 0:17:42]} f5 {[%emt 0:06:19]} 18. Nc3 {[%emt 0:01:50]} b4 {[%emt 0:01:33]} 19. Ne2 {[%emt 0:00:33]} Qd5 {[%emt 0:09:07]} 20. b3 {[%emt 0:00:31]} Qd7 {[%emt 0:01:18]} 21. Ba6 {[%emt 0:05:49]} Bd5 {[%emt 0:06:55]} 22. Nf4 {[%emt 0:04:56]} Be4 {[%emt 0:17:07]} 23. Bd3 {[%emt 0:01:43]} Bxd3 {[%emt 0:01:19]} 24. Nxd3 {[%emt 0:00:47]} a5 {[%emt 0:01:05]} 25. Ne5 {[%emt 0:02:03]} Qd5 {[%emt 0:09:40]} 26. g3 {[%emt 0:09:51]} Ne6 {[%emt 0:04:47]} 27. Nc4 {[%emt 0:03:45]} Bd8 {[%emt 0:05:18]} 28. Nd6 {[%emt 0:01:12]} Bc7 {[%emt 0:00:07]} 29. Nxc8 {[%emt 0:07:23]} Rxc8 {[%emt 0:00:16]} 30. Qc4 {[%emt 0:00:00]} Rd8 {[%emt 0:01:08]} 1/2-1/2

[Event "BAN-chT Golden Jubilee 2021-22"]
[Site "Dhaka"]
[Date "2022.03.17"]
[Round "8.24"]
[White "Rahman, Ziaur"]
[Black "Pranav Vijay"]
[Result "1-0"]
[ECO "D04"]
[WhiteElo "2417"]
[BlackElo "2265"]
[Annotator "ChessBase"]
[PlyCount "63"]
[EventDate "2022.03.10"]
[EventType "team-tourn"]
[EventCountry "BAN"]
[SourceTitle "playchess.com"]
[Source "ChessBase"]
[SourceQuality "1"]
[TimeControl "40/5400+30:1800+30"]

1. Nf3 {[%emt 0:00:06]} Nf6 {[%emt 0:00:08]} 2. b3 {[%emt 0:00:18]} d5 {[%emt 0:00:18]} 3. e3 {[%emt 0:00:43]} g6 {[%emt 0:01:12]} 4. Bb2 {[%emt 0:00:25]} Bg7 {[%emt 0:00:18]} 5. d4 {[%emt 0:01:02]} O-O {[%emt 0:01:37]} 6. Nbd2 {[%emt 0:00:59]} Ne4 {[%emt 0:12:13]} 7. c4 {[%emt 0:06:22]} c5 {[%emt 0:09:09]} 8. cxd5 {[%emt 0:01:21]} Nxd2 {[%emt 0:00:46]} 9. Qxd2 {[%emt 0:00:39]} Qxd5 {[%emt 0:00:27]} 10. Bc4 {[%emt 0:02:22]} Qd6 {[%emt 0:03:55]} 11. Rd1 {[%emt 0:02:25]} Nc6 {[%emt 0:11:19]} 12. d5 {[%emt 0:05:11]} Bxb2 {[%emt 0:06:02]} 13. Qxb2 {[%emt 0:00:49]} Na5 {[%emt 0:00:08]} 14. h3 {[%emt 0:07:00]} Nxc4 {[%emt 0:10:36]} 15. bxc4 {[%emt 0:00:10]} Rb8 {[%emt 0:00:37]} 16. O-O {[%emt 0:01:33]} b5 {[%emt 0:01:32]} 17. cxb5 {[%emt 0:07:39]} a6 {[%emt 0:00:15]} 18. b6 {[%emt 0:02:31]} Rxb6 {[%emt 0:01:50]} 19. Qc3 {[%emt 0:02:11]} Rb4 {[%emt 0:03:40]} 20. Ne5 {[%emt 0:02:09]} Re4 {[%emt 0:09:08]} 21. Nc4 {[%emt 0:02:06]} Qc7 {[%emt 0:02:24]} 22. f3 {[%emt 0:03:11]} Rh4 {[%emt 0:00:48]} 23. f4 {[%emt 0:00:39]} Rd8 {[%emt 0:01:50]} 24. d6 {[%emt 0:10:27]} exd6 {[%emt 0:00:08]} 25. Qf6 {[%emt 0:00:36]} Rh5 {[%emt 0:00:10]} 26. Nxd6 {[%emt 0:01:42]} Rf8 {[%emt 0:00:47]} 27. e4 {[%emt 0:02:09]} c4 {[%emt 0:00:37]} 28. f5 {[%emt 0:37:45]} Bd7 {[%emt 0:06:36]} 29. fxg6 {[%emt 0:00:00]} Qb6+ {[%emt 0:03:35]} 30. Kh1 {[%emt 0:00:00]} hxg6 {[%emt 0:00:14]} 31. Ne8 {[%emt 0:00:00]} Qe6 {[%emt 0:00:52]} 32. Qg7# {[%emt 0:00:00]} 1-0